[Event "Late-Titled-Tuesday-Blitz-October-24-2023"]
[Site "Chess.com"]
[Date "2023.10.24"]
[Round "9"]
[White "Beca95"]
[Black "filipluczak05"]
[Result "1-0"]
[WhiteElo "2920"]
[BlackElo "2644"]
[TimeControl "180+1"]
[EndTime "15:43:50 PDT"]
[Termination "Beca95 won by resignation"]

1. d4 {[%clk 0:03:00.9]} 1... g6 {[%clk 0:02:45.8]} 2. e4 {[%clk 0:02:57.4]}
2... Bg7 {[%clk 0:02:45.1]} 3. Nc3 {[%clk 0:02:58]} 3... c5 {[%clk 0:02:44.7]}
4. dxc5 {[%clk 0:02:57.2]} 4... Bxc3+ {[%clk 0:02:44.6]} 5. bxc3 {[%clk
0:02:58.1]} 5... Nf6 {[%clk 0:02:45.1]} 6. Bd3 {[%clk 0:02:51.5]} 6... Qa5
{[%clk 0:02:44.7]} 7. Nf3 {[%clk 0:02:49.5]} 7... Qxc3+ {[%clk 0:02:44.9]} 8.
Bd2 {[%clk 0:02:49]} 8... Qxc5 {[%clk 0:02:45.8]} 9. O-O {[%clk 0:02:46.2]} 9...
Nc6 {[%clk 0:02:45.1]} 10. Rb1 {[%clk 0:02:46]} 10... a6 {[%clk 0:02:42.2]} 11.
h3 {[%clk 0:02:45]} 11... d6 {[%clk 0:02:39]} 12. Re1 {[%clk 0:02:44.8]} 12...
O-O {[%clk 0:02:36.1]} 13. Be3 {[%clk 0:02:40.6]} 13... Qa5 {[%clk 0:02:34.7]}
14. Bb6 {[%clk 0:02:35.7]} 14... Qa4 {[%clk 0:02:14.4]} 15. Qd2 {[%clk 0:02:13]}
15... Be6 {[%clk 0:02:11.5]} 16. Qh6 {[%clk 0:02:12.7]} 16... Ne5 {[%clk
0:01:44.9]} 17. Ng5 {[%clk 0:02:10.8]} 17... Rfc8 {[%clk 0:01:30.6]} 18. f4
{[%clk 0:01:43.7]} 18... Nxd3 {[%clk 0:01:29.6]} 19. cxd3 {[%clk 0:01:44.6]}
19... Rc2 {[%clk 0:01:00.7]} 20. e5 {[%clk 0:01:38.3]} 20... Qxa2 {[%clk
0:01:00.2]} 21. exf6 {[%clk 0:01:35.2]} 21... Rxg2+ {[%clk 0:00:54.3]} 22. Kf1
{[%clk 0:01:34.9]} 22... exf6 {[%clk 0:00:54]} 23. Qxh7+ {[%clk 0:01:31.5]}
23... Kf8 {[%clk 0:00:54]} 24. Rxe6 {[%clk 0:01:22.1]} 24... Qxb1+ {[%clk
0:00:40.7]} 25. Kxg2 {[%clk 0:01:21.4]} 25... Qb2+ {[%clk 0:00:40.7]} 26. Bf2
{[%clk 0:00:56.7]} 26... fxg5 {[%clk 0:00:39.2]} 27. Rxd6 {[%clk 0:00:50]} 27...
gxf4 {[%clk 0:00:20.5]} 28. Rd7 {[%clk 0:00:16.4]} 28... Qf6 {[%clk 0:00:19.3]}
29. Bc5+ {[%clk 0:00:10.6]} 29... Ke8 {[%clk 0:00:10.2]} 30. Re7+ {[%clk
0:00:10.7]} 30... Qxe7 {[%clk 0:00:08.5]} 31. Bxe7 {[%clk 0:00:11.6]} 31... Kxe7
{[%clk 0:00:08.9]} 32. Qh4+ {[%clk 0:00:12.2]} 32... f6 {[%clk 0:00:08.8]} 33.
Qxf4 {[%clk 0:00:12.9]} 33... Rd8 {[%clk 0:00:09.7]} 34. Qb4+ {[%clk 0:00:12.7]}
34... Ke6 {[%clk 0:00:09.3]} 35. Qb3+ {[%clk 0:00:12.8]} 35... Ke5 {[%clk
0:00:09.2]} 36. Kf3 {[%clk 0:00:11.1]} 36... b5 {[%clk 0:00:08.6]} 37. Ke3
{[%clk 0:00:11.5]} 37... Rd4 {[%clk 0:00:07.7]} 38. Qf7 {[%clk 0:00:11.3]} 38...
Rh4 {[%clk 0:00:06.7]} 39. Qe7+ {[%clk 0:00:11.5]} 39... Kf5 {[%clk 0:00:07.1]}
40. Qd7+ {[%clk 0:00:11.3]} 40... Kg5 {[%clk 0:00:06.8]} 41. d4 {[%clk
0:00:11.6]} 41... f5 {[%clk 0:00:06.5]} 42. d5 {[%clk 0:00:11.5]} 42... Rxh3+
{[%clk 0:00:06.8]} 43. Kd4 {[%clk 0:00:12]} 43... Kf4 {[%clk 0:00:05.6]} 44.
Qc7+ {[%clk 0:00:11.8]} 44... Kf3 {[%clk 0:00:04.2]} 45. d6 {[%clk 0:00:12.1]}
45... Rh1 {[%clk 0:00:03.6]} 46. d7 {[%clk 0:00:12.5]} 46... Rd1+ {[%clk
0:00:03]} 47. Ke5 {[%clk 0:00:13.1]} 47... f4 {[%clk 0:00:03.5]} 48. d8=Q {[%clk
0:00:12.7]} 48... Rxd8 {[%clk 0:00:03.7]} 49. Qxd8 {[%clk 0:00:13.6]} 49... g5
{[%clk 0:00:04.5]} 50. Qd3+ {[%clk 0:00:13.1]} 50... Kg4 {[%clk 0:00:04.3]} 51.
Ke4 {[%clk 0:00:13.4]} 1-0

[Event "Late-Titled-Tuesday-Blitz-October-24-2023"]
[Site "Chess.com"]
[Date "2023.10.24"]
[Round "9"]
[White "Maluco_do_Natal_00"]
[Black "expii"]
[Result "0-1"]
[WhiteElo "2035"]
[BlackElo "2212"]
[TimeControl "180+1"]
[EndTime "15:43:54 PDT"]
[Termination "expii won on time"]

1. e4 {[%clk 0:03:00.9]} 1... c5 {[%clk 0:03:00]} 2. Nf3 {[%clk 0:02:57.7]} 2...
d6 {[%clk 0:03:00.5]} 3. d4 {[%clk 0:02:57.8]} 3... cxd4 {[%clk 0:03:01.4]} 4.
Nxd4 {[%clk 0:02:58.4]} 4... Nf6 {[%clk 0:03:01.9]} 5. Nc3 {[%clk 0:02:58.3]}
5... g6 {[%clk 0:03:02.5]} 6. Be3 {[%clk 0:02:56.5]} 6... Bg7 {[%clk 0:03:02.5]}
7. Bc4 {[%clk 0:02:55.8]} 7... O-O {[%clk 0:03:02.9]} 8. Bb3 {[%clk 0:02:54.9]}
8... Ng4 {[%clk 0:03:02.5]} 9. O-O {[%clk 0:02:30.6]} 9... Nxe3 {[%clk
0:03:00.7]} 10. fxe3 {[%clk 0:02:31.5]} 10... Nc6 {[%clk 0:02:48.4]} 11. Kh1
{[%clk 0:02:28.1]} 11... e6 {[%clk 0:02:32.1]} 12. Ndb5 {[%clk 0:02:18]} 12...
Be5 {[%clk 0:02:15.2]} 13. a3 {[%clk 0:02:10.7]} 13... a6 {[%clk 0:02:11.3]} 14.
Nd4 {[%clk 0:02:10.3]} 14... Bd7 {[%clk 0:02:09.6]} 15. Qd2 {[%clk 0:02:02.5]}
15... Qb6 {[%clk 0:02:05.1]} 16. Nf3 {[%clk 0:01:52.3]} 16... Bg7 {[%clk
0:01:47.5]} 17. Qxd6 {[%clk 0:01:47]} 17... Rad8 {[%clk 0:01:46.5]} 18. Qf4
{[%clk 0:01:37]} 18... Bc8 {[%clk 0:01:24.1]} 19. Rfd1 {[%clk 0:01:24.8]} 19...
Qc5 {[%clk 0:00:56.1]} 20. Na4 {[%clk 0:00:37.4]} 20... Qe7 {[%clk 0:00:41.4]}
21. e5 {[%clk 0:00:28.9]} 21... h6 {[%clk 0:00:33.4]} 22. Nc3 {[%clk 0:00:18.7]}
22... g5 {[%clk 0:00:31.3]} 23. Qe4 {[%clk 0:00:17.9]} 23... Qc7 {[%clk
0:00:29.1]} 24. Rxd8 {[%clk 0:00:13.5]} 24... Rxd8 {[%clk 0:00:28.1]} 25. h3
{[%clk 0:00:12.9]} 25... Nxe5 {[%clk 0:00:20.5]} 26. Nxe5 {[%clk 0:00:12.3]}
26... Qxe5 {[%clk 0:00:21.4]} 27. Qxe5 {[%clk 0:00:11.7]} 27... Bxe5 {[%clk
0:00:20.9]} 28. Rd1 {[%clk 0:00:11.2]} 28... Rxd1+ {[%clk 0:00:19.1]} 29. Nxd1
{[%clk 0:00:12.1]} 29... Bd7 {[%clk 0:00:19.2]} 30. c3 {[%clk 0:00:11.5]} 30...
Bc6 {[%clk 0:00:19]} 31. Bc2 {[%clk 0:00:11.2]} 31... f5 {[%clk 0:00:18.7]} 32.
Kg1 {[%clk 0:00:10.8]} 32... Kf7 {[%clk 0:00:18.8]} 33. Kf2 {[%clk 0:00:11]}
33... Ke7 {[%clk 0:00:18.7]} 34. g3 {[%clk 0:00:09.3]} 34... Kf6 {[%clk
0:00:18.4]} 35. g4 {[%clk 0:00:08.5]} 35... Bd5 {[%clk 0:00:16.9]} 36. gxf5
{[%clk 0:00:08.2]} 36... exf5 {[%clk 0:00:17.8]} 37. Ke2 {[%clk 0:00:07.2]}
37... g4 {[%clk 0:00:14]} 38. hxg4 {[%clk 0:00:06.8]} 38... fxg4 {[%clk
0:00:14.9]} 39. Nf2 {[%clk 0:00:06.8]} 39... h5 {[%clk 0:00:14.4]} 40. e4 {[%clk
0:00:07]} 40... Bc4+ {[%clk 0:00:13.5]} 41. Ke3 {[%clk 0:00:06]} 41... g3 {[%clk
0:00:12.2]} 42. Nh3 {[%clk 0:00:05.5]} 42... Be6 {[%clk 0:00:10.9]} 43. Ng1
{[%clk 0:00:05.5]} 43... h4 {[%clk 0:00:09.2]} 44. Bd1 {[%clk 0:00:04.3]} 44...
h3 {[%clk 0:00:07.5]} 45. Bf3 {[%clk 0:00:03.4]} 45... h2 {[%clk 0:00:06.3]} 46.
Ne2 {[%clk 0:00:03.2]} 46... Bg4 {[%clk 0:00:04.8]} 47. Nxg3 {[%clk 0:00:01.6]}
47... Bxg3 {[%clk 0:00:03.4]} 0-1

[Event "Late-Titled-Tuesday-Blitz-October-24-2023"]
[Site "Chess.com"]
[Date "2023.10.24"]
[Round "9"]
[White "meoluoi91"]
[Black "hblanco"]
[Result "1-0"]
[WhiteElo "2607"]
[BlackElo "2716"]
[TimeControl "180+1"]
[EndTime "15:44:01 PDT"]
[Termination "meoluoi91 won on time"]

1. Nf3 {[%clk 0:03:00.9]} 1... d5 {[%clk 0:02:59.2]} 2. g3 {[%clk 0:03:00.5]}
2... Nf6 {[%clk 0:02:59.7]} 3. Bg2 {[%clk 0:03:00.8]} 3... g6 {[%clk 0:03:00.3]}
4. O-O {[%clk 0:03:00.6]} 4... Bg7 {[%clk 0:03:00.9]} 5. d4 {[%clk 0:03:01.1]}
5... O-O {[%clk 0:03:01.3]} 6. c4 {[%clk 0:03:01.6]} 6... c6 {[%clk 0:02:59.8]}
7. Nc3 {[%clk 0:03:01.4]} 7... dxc4 {[%clk 0:02:58.8]} 8. Ne5 {[%clk 0:02:57.7]}
8... Ng4 {[%clk 0:02:59]} 9. Nf3 {[%clk 0:02:52.1]} 9... e5 {[%clk 0:02:53.2]}
10. Bg5 {[%clk 0:02:41]} 10... Qb6 {[%clk 0:02:41.6]} 11. d5 {[%clk 0:02:30.1]}
11... Qxb2 {[%clk 0:02:30.3]} 12. Na4 {[%clk 0:02:25.9]} 12... Qa3 {[%clk
0:02:22.7]} 13. d6 {[%clk 0:02:10.7]} 13... b5 {[%clk 0:02:08]} 14. Be7 {[%clk
0:01:55.2]} 14... bxa4 {[%clk 0:01:50.2]} 15. Bxf8 {[%clk 0:01:50.1]} 15... Kxf8
{[%clk 0:01:48]} 16. h3 {[%clk 0:01:48.4]} 16... Nh6 {[%clk 0:01:47.7]} 17. Ng5
{[%clk 0:01:46.3]} 17... Nf5 {[%clk 0:01:39.4]} 18. Ne4 {[%clk 0:01:38.3]} 18...
Be6 {[%clk 0:01:28]} 19. e3 {[%clk 0:01:34.1]} 19... Nd7 {[%clk 0:01:23.4]} 20.
Qc2 {[%clk 0:01:33.7]} 20... Nxd6 {[%clk 0:01:15.9]} 21. Ng5 {[%clk 0:01:30.4]}
21... Qc5 {[%clk 0:00:45.7]} 22. Nxh7+ {[%clk 0:01:23]} 22... Kg8 {[%clk
0:00:45.9]} 23. Ng5 {[%clk 0:01:23.6]} 23... Nf8 {[%clk 0:00:46.2]} 24. Rfd1
{[%clk 0:01:15.9]} 24... e4 {[%clk 0:00:45.7]} 25. Nxe6 {[%clk 0:01:13.3]} 25...
fxe6 {[%clk 0:00:44.9]} 26. Rab1 {[%clk 0:01:10.3]} 26... c3 {[%clk 0:00:34.7]}
27. g4 {[%clk 0:01:00]} 27... g5 {[%clk 0:00:33.3]} 28. Rbc1 {[%clk 0:00:53.2]}
28... Qe5 {[%clk 0:00:25.2]} 29. Qxa4 {[%clk 0:00:52]} 29... Rc8 {[%clk
0:00:12.7]} 30. Qxa7 {[%clk 0:00:41.8]} 30... Ng6 {[%clk 0:00:13.1]} 31. Qd7
{[%clk 0:00:40.4]} 31... Rf8 {[%clk 0:00:11.7]} 32. Qxd6 {[%clk 0:00:39.5]}
32... Qxd6 {[%clk 0:00:09]} 33. Rxd6 {[%clk 0:00:39]} 33... Ra8 {[%clk
0:00:04.3]} 34. Bxe4 {[%clk 0:00:37.8]} 34... Ne5 {[%clk 0:00:03.8]} 35. Rc2
{[%clk 0:00:28.5]} 35... Ra4 {[%clk 0:00:01.6]} 36. f3 {[%clk 0:00:25.3]} 36...
Kf7 {[%clk 0:00:02.5]} 37. Kg2 {[%clk 0:00:25]} 37... Ke7 {[%clk 0:00:03.1]} 38.
Rd1 {[%clk 0:00:24.1]} 38... Nc4 {[%clk 0:00:03.8]} 39. Rd3 {[%clk 0:00:21.3]}
39... Ne5 {[%clk 0:00:03.7]} 40. Rdxc3 {[%clk 0:00:18.6]} 40... Ra5 {[%clk
0:00:02.6]} 41. Rb3 {[%clk 0:00:17.5]} 41... Nd7 {[%clk 0:00:02.4]} 42. Bxc6
{[%clk 0:00:16.4]} 42... Ne5 {[%clk 0:00:01.6]} 43. Be4 {[%clk 0:00:16.3]} 43...
Nf7 {[%clk 0:00:01.9]} 44. Rb7+ {[%clk 0:00:16]} 44... Kf6 {[%clk 0:00:02.3]}
45. Rcc7 {[%clk 0:00:15.9]} 45... Nd6 {[%clk 0:00:03.2]} 46. Rxg7 {[%clk
0:00:15.8]} 46... Nxb7 {[%clk 0:00:03.5]} 47. Rxb7 {[%clk 0:00:16.2]} 47...
Rxa2+ {[%clk 0:00:04.4]} 48. Kg3 {[%clk 0:00:16.5]} 48... Ra1 {[%clk 0:00:04.7]}
49. h4 {[%clk 0:00:16.3]} 49... Rg1+ {[%clk 0:00:05.1]} 50. Kf2 {[%clk
0:00:16.4]} 50... Rh1 {[%clk 0:00:05.4]} 51. h5 {[%clk 0:00:16.7]} 51... Rh2+
{[%clk 0:00:04.7]} 52. Kg3 {[%clk 0:00:17.3]} 52... Ke5 {[%clk 0:00:05.1]} 53.
Kxh2 {[%clk 0:00:17]} 1-0

[Event "Late-Titled-Tuesday-Blitz-October-24-2023"]
[Site "Chess.com"]
[Date "2023.10.24"]
[Round "9"]
[White "Elsa167"]
[Black "Ykow"]
[Result "1/2-1/2"]
[WhiteElo "2887"]
[BlackElo "2571"]
[TimeControl "180+1"]
[EndTime "15:44:07 PDT"]
[Termination "Game drawn - insufficient material"]

1. d4 {[%clk 0:03:00.9]} 1... d5 {[%clk 0:02:59.2]} 2. c4 {[%clk 0:03:01.5]}
2... e5 {[%clk 0:02:59.2]} 3. e3 {[%clk 0:02:59]} 3... exd4 {[%clk 0:02:58.3]}
4. exd4 {[%clk 0:02:59.9]} 4... Nf6 {[%clk 0:02:55.4]} 5. Nc3 {[%clk 0:03:00.1]}
5... Be7 {[%clk 0:02:54]} 6. Nf3 {[%clk 0:02:59.9]} 6... O-O {[%clk 0:02:53.6]}
7. Bd3 {[%clk 0:03:00.5]} 7... Nbd7 {[%clk 0:02:53.5]} 8. O-O {[%clk 0:02:55.7]}
8... dxc4 {[%clk 0:02:53.6]} 9. Bxc4 {[%clk 0:02:56.6]} 9... Nb6 {[%clk
0:02:54.5]} 10. Bb3 {[%clk 0:02:56.9]} 10... Bg4 {[%clk 0:02:54.7]} 11. h3
{[%clk 0:02:51.5]} 11... Bxf3 {[%clk 0:02:54.7]} 12. Qxf3 {[%clk 0:02:51.8]}
12... c6 {[%clk 0:02:55.6]} 13. Re1 {[%clk 0:02:48.2]} 13... Nbd5 {[%clk
0:02:49.7]} 14. Bg5 {[%clk 0:02:45.3]} 14... Nxc3 {[%clk 0:02:12.9]} 15. bxc3
{[%clk 0:02:46.2]} 15... h6 {[%clk 0:02:12.9]} 16. Bh4 {[%clk 0:02:29.2]} 16...
Nd5 {[%clk 0:02:10.4]} 17. Bxe7 {[%clk 0:02:12.5]} 17... Nxe7 {[%clk 0:02:11.3]}
18. Re5 {[%clk 0:02:07.5]} 18... Ng6 {[%clk 0:01:55.9]} 19. Re4 {[%clk
0:02:07.3]} 19... Qd7 {[%clk 0:01:53]} 20. Rae1 {[%clk 0:02:06.9]} 20... a5
{[%clk 0:01:31.7]} 21. a4 {[%clk 0:01:52.2]} 21... Kh8 {[%clk 0:01:18.7]} 22. h4
{[%clk 0:01:30.4]} 22... f5 {[%clk 0:01:06.2]} 23. Re6 {[%clk 0:01:20.3]} 23...
Rfe8 {[%clk 0:00:27.5]} 24. Qxf5 {[%clk 0:01:04.8]} 24... Nf8 {[%clk 0:00:26.7]}
25. Rxe8 {[%clk 0:00:50.7]} 25... Rxe8 {[%clk 0:00:26.8]} 26. Qb1 {[%clk
0:00:40.6]} 26... Ng6 {[%clk 0:00:24.8]} 27. g3 {[%clk 0:00:36.1]} 27... Rxe1+
{[%clk 0:00:15]} 28. Qxe1 {[%clk 0:00:37]} 28... Ne7 {[%clk 0:00:15.4]} 29. Qe4
{[%clk 0:00:35.9]} 29... b5 {[%clk 0:00:13.5]} 30. Bc2 {[%clk 0:00:33.6]} 30...
g6 {[%clk 0:00:13.6]} 31. h5 {[%clk 0:00:33.9]} 31... Qd6 {[%clk 0:00:09.7]} 32.
hxg6 {[%clk 0:00:32.3]} 32... bxa4 {[%clk 0:00:10.1]} 33. Bxa4 {[%clk
0:00:20.6]} 33... Kg7 {[%clk 0:00:10.2]} 34. Bc2 {[%clk 0:00:16.6]} 34... c5
{[%clk 0:00:09]} 35. dxc5 {[%clk 0:00:11.7]} 35... Qxc5 {[%clk 0:00:09.9]} 36.
Kg2 {[%clk 0:00:08.3]} 36... Qc6 {[%clk 0:00:09.3]} 37. Qxc6 {[%clk 0:00:06.2]}
37... Nxc6 {[%clk 0:00:10.2]} 38. f4 {[%clk 0:00:06.7]} 38... Na7 {[%clk
0:00:09]} 39. Ba4 {[%clk 0:00:06]} 39... Kxg6 {[%clk 0:00:08.5]} 40. Kf3 {[%clk
0:00:06.3]} 40... Nc8 {[%clk 0:00:08.5]} 41. Bc2+ {[%clk 0:00:05]} 41... Kf6
{[%clk 0:00:08.8]} 42. Ke4 {[%clk 0:00:05.6]} 42... Nd6+ {[%clk 0:00:08.6]} 43.
Kd5 {[%clk 0:00:04.7]} 43... Nb5 {[%clk 0:00:07.7]} 44. c4 {[%clk 0:00:03.5]}
44... Nc3+ {[%clk 0:00:06.9]} 45. Kd6 {[%clk 0:00:02.2]} 45... a4 {[%clk
0:00:06.4]} 46. c5 {[%clk 0:00:02.9]} 46... a3 {[%clk 0:00:07]} 47. Bb3 {[%clk
0:00:03.5]} 47... a2 {[%clk 0:00:05.1]} 48. Bxa2 {[%clk 0:00:03.7]} 48... Nxa2
{[%clk 0:00:06]} 49. c6 {[%clk 0:00:04.4]} 49... Nc3 {[%clk 0:00:06.4]} 50. c7
{[%clk 0:00:02.3]} 50... Nb5+ {[%clk 0:00:06.5]} 51. Kc6 {[%clk 0:00:03]} 51...
Nxc7 {[%clk 0:00:04.8]} 52. Kxc7 {[%clk 0:00:03.9]} 52... Kf5 {[%clk 0:00:05.4]}
53. Kd6 {[%clk 0:00:04.6]} 53... h5 {[%clk 0:00:06]} 54. Kd5 {[%clk 0:00:04.9]}
54... h4 {[%clk 0:00:06.5]} 55. gxh4 {[%clk 0:00:03.3]} 55... Kxf4 {[%clk
0:00:07]} 56. h5 {[%clk 0:00:03.9]} 56... Kg5 {[%clk 0:00:07.4]} 57. h6 {[%clk
0:00:04.5]} 57... Kxh6 {[%clk 0:00:07.8]} 1/2-1/2

[Event "Late-Titled-Tuesday-Blitz-October-24-2023"]
[Site "Chess.com"]
[Date "2023.10.24"]
[Round "9"]
[White "shimastream"]
[Black "baag"]
[Result "1-0"]
[WhiteElo "2975"]
[BlackElo "2855"]
[TimeControl "180+1"]
[EndTime "15:44:10 PDT"]
[Termination "shimastream won by resignation"]

1. Nf3 {[%clk 0:03:00.9]} 1... Nf6 {[%clk 0:03:00.2]} 2. c4 {[%clk 0:03:00.7]}
2... e6 {[%clk 0:03:00.4]} 3. g3 {[%clk 0:03:00.5]} 3... d5 {[%clk 0:02:51]} 4.
Bg2 {[%clk 0:03:00.5]} 4... Be7 {[%clk 0:02:51.6]} 5. d4 {[%clk 0:03:00.2]} 5...
O-O {[%clk 0:02:51.4]} 6. Qc2 {[%clk 0:03:00.5]} 6... c5 {[%clk 0:02:50.7]} 7.
dxc5 {[%clk 0:03:00.3]} 7... Qa5+ {[%clk 0:02:49.6]} 8. Nc3 {[%clk 0:02:56.5]}
8... dxc4 {[%clk 0:02:48.3]} 9. O-O {[%clk 0:02:55.1]} 9... Nc6 {[%clk
0:02:36.2]} 10. Bg5 {[%clk 0:02:51.6]} 10... Qxc5 {[%clk 0:02:10.3]} 11. Bxf6
{[%clk 0:02:51.5]} 11... gxf6 {[%clk 0:02:11.1]} 12. Ne4 {[%clk 0:02:49]} 12...
Qb5 {[%clk 0:01:35.3]} 13. Rfd1 {[%clk 0:02:43]} 13... f5 {[%clk 0:01:31.9]} 14.
Nd6 {[%clk 0:02:39.7]} 14... Qc5 {[%clk 0:01:31.2]} 15. Nxc4 {[%clk 0:02:37.2]}
15... b5 {[%clk 0:01:12.4]} 16. Ne3 {[%clk 0:02:37]} 16... Qxc2 {[%clk
0:01:13.1]} 17. Nxc2 {[%clk 0:02:37.9]} 17... Rb8 {[%clk 0:01:12.6]} 18. Ncd4
{[%clk 0:02:36.2]} 18... Nxd4 {[%clk 0:01:06.4]} 19. Nxd4 {[%clk 0:02:37.1]}
19... Bf6 {[%clk 0:01:04.1]} 20. Rac1 {[%clk 0:02:33.1]} 20... Bb7 {[%clk
0:01:02.9]} 21. b3 {[%clk 0:02:19.7]} 21... Bxg2 {[%clk 0:00:42.8]} 22. Kxg2
{[%clk 0:02:19.3]} 22... Bxd4 {[%clk 0:00:42.6]} 23. Rxd4 {[%clk 0:02:20.2]}
23... Rfd8 {[%clk 0:00:39.6]} 24. Rcd1 {[%clk 0:02:03.1]} 24... Rxd4 {[%clk
0:00:38.5]} 25. Rxd4 {[%clk 0:02:04]} 25... Rc8 {[%clk 0:00:38.7]} 26. Rd2
{[%clk 0:02:00.9]} 26... Kg7 {[%clk 0:00:35.2]} 27. Kf3 {[%clk 0:02:00.1]} 27...
a5 {[%clk 0:00:30]} 28. e3 {[%clk 0:01:57.7]} 28... Kf6 {[%clk 0:00:28.3]} 29.
h3 {[%clk 0:01:56.8]} 29... h5 {[%clk 0:00:25.7]} 30. Ke2 {[%clk 0:01:47.3]}
30... Rc3 {[%clk 0:00:22]} 31. Kd1 {[%clk 0:01:44.8]} 31... Ke5 {[%clk
0:00:17.9]} 32. Rd4 {[%clk 0:01:43]} 32... Kf6 {[%clk 0:00:15.9]} 33. Kd2 {[%clk
0:01:42.2]} 33... b4 {[%clk 0:00:14.9]} 34. Rh4 {[%clk 0:01:39.7]} 34... Kg6
{[%clk 0:00:13.3]} 35. Rd4 {[%clk 0:01:40]} 35... Kf6 {[%clk 0:00:13.2]} 36. Rd3
{[%clk 0:01:35.7]} 36... Rc5 {[%clk 0:00:12.9]} 37. Rd8 {[%clk 0:01:35.6]} 37...
Rc3 {[%clk 0:00:11]} 38. Ra8 {[%clk 0:01:35.1]} 38... Rc5 {[%clk 0:00:11.7]} 39.
h4 {[%clk 0:01:34.6]} 39... Rd5+ {[%clk 0:00:10.4]} 40. Ke2 {[%clk 0:01:35]}
40... Rc5 {[%clk 0:00:11.3]} 41. Kd3 {[%clk 0:01:35.4]} 41... Ke5 {[%clk
0:00:09]} 42. Ra7 {[%clk 0:01:18.7]} 42... Kf6 {[%clk 0:00:08.5]} 43. Ra6 {[%clk
0:01:16.1]} 43... Ke5 {[%clk 0:00:07.4]} 44. Ra8 {[%clk 0:01:16]} 44... Rc3+
{[%clk 0:00:03.8]} 45. Kd2 {[%clk 0:01:15.6]} 45... Rc5 {[%clk 0:00:03.9]} 46.
Ra7 {[%clk 0:01:14]} 46... Kf6 {[%clk 0:00:04.2]} 47. Kd1 {[%clk 0:01:14.4]}
47... Rd5+ {[%clk 0:00:04.2]} 48. Kc2 {[%clk 0:01:14.5]} 48... Rc5+ {[%clk
0:00:05.1]} 49. Kd3 {[%clk 0:01:14.7]} 49... Kg6 {[%clk 0:00:02.4]} 50. f4
{[%clk 0:01:08.1]} 50... Kf6 {[%clk 0:00:01.7]} 51. Kd4 {[%clk 0:01:08.4]} 51...
Rd5+ {[%clk 0:00:01.6]} 52. Kc4 {[%clk 0:01:08.8]} 52... Kg6 {[%clk 0:00:02.2]}
53. Ra8 {[%clk 0:01:07.3]} 53... Kf6 {[%clk 0:00:02.4]} 54. Ra6 {[%clk
0:01:02.6]} 54... Kg6 {[%clk 0:00:02]} 55. Ra7 {[%clk 0:01:02.2]} 55... Kf6
{[%clk 0:00:02.5]} 56. Ra8 {[%clk 0:01:02.7]} 56... Kg6 {[%clk 0:00:02.3]} 57.
Rg8+ {[%clk 0:01:02.5]} 57... Kf6 {[%clk 0:00:02.7]} 58. Rg5 {[%clk 0:00:46.5]}
58... Rd2 {[%clk 0:00:02.7]} 59. e4 {[%clk 0:00:46.4]} 59... Rxa2 {[%clk
0:00:01.8]} 60. e5+ {[%clk 0:00:42.2]} 60... Ke7 {[%clk 0:00:02.2]} 61. Rxh5
{[%clk 0:00:42.5]} 61... Rc2+ {[%clk 0:00:02]} 62. Kb5 {[%clk 0:00:42.8]} 62...
Rc3 {[%clk 0:00:01.7]} 63. Rg5 {[%clk 0:00:43]} 63... Rxb3 {[%clk 0:00:01.9]}
64. Kxa5 {[%clk 0:00:43.5]} 64... Rb1 {[%clk 0:00:01.7]} 65. Ka4 {[%clk
0:00:43.7]} 65... b3 {[%clk 0:00:01.7]} 66. Ka3 {[%clk 0:00:44.2]} 66... f6
{[%clk 0:00:02]} 67. Rg7+ {[%clk 0:00:43.7]} 67... Kf8 {[%clk 0:00:02.5]} 68.
exf6 {[%clk 0:00:44.6]} 68... Rc1 {[%clk 0:00:01.6]} 69. Kxb3 {[%clk 0:00:44.3]}
69... Rc5 {[%clk 0:00:01.9]} 70. h5 {[%clk 0:00:44.1]} 70... Rc1 {[%clk
0:00:02.5]} 71. h6 {[%clk 0:00:44.1]} 1-0